bitfinex/quotes_ETHUSD_20220202
["timestamp","ask_amount","ask_price","bid_price","bid_amount"]
[1643760976197,1.50946932,2799.9,2799.4,0.25]
[1643760976639,1.50946932,2799.9,2798.9,0.1784]
[1643760976833,1.50946932,2799.9,2798.8,0.3]
[1643760976834,0.1786,2799.8,2798.8,0.3]
[1643760977036,1.50946932,2799.7,2798.7,0.1786]
[1643760977233,0.89532068,2799.1,2798.7,0.1786]
[1643760978235,1.21551386,2799.1,2798.4,0.00104549]
[1643760978435,0.89532068,2799.1,2798.4,0.00104549]
[1643760979744,0.89532068,2799.1,2798.5,0.73489471]
[1643760980143,0.89532068,2799.1,2798.5,1.03489471]
[1643760980387,0.89532068,2799.1,2798.5,0.6]
[1643760980580,0.89532068,2799.1,2798.5,0.3]
[1643760980780,0.89532068,2799.1,2798.4,1.49428549]
[1643760981284,0.1786,2799.3,2798.5,2.0]
[1643760981489,3.9033,2799.5,2798.5,3.96471]
[1643760981685,0.1786,2799.7,2798.6,6.91265145]
[1643760981891,0.1786,2800.2,2799.1,0.89279]
[1643760982087,1.50952453,2800.1,2799.1,1.49279]
[1643760982285,1.50952453,2800.0,2799.5,0.44826091]
[1643760982487,0.6905985,2800.0,2799.6,1.6069599]
[1643760982687,1.50951976,2799.9,2799.1,0.3]
[1643760982891,1.50951976,2799.9,2798.8,0.3]
[1643760983083,1.50951976,2799.9,2798.7,0.1786]
[1643760983283,1.50951976,2799.9,2798.9,1.78582]
[1643760983486,0.6905985,2800.0,2799.5,0.37280552]
[1643760983684,1.5095448,2799.9,2799.5,0.8035504]
[1643760983887,1.5095448,2799.9,2799.5,1.1035504]
[1643760984160,0.1786,2800.2,2799.5,1.1035504]
[1643760984161,0.1786,2800.2,2799.5,1.4035504]
[1643760984348,1.50952536,2800.1,2799.5,1.4035504]
[1643760984547,1.50952536,2800.1,2799.5,2.2964104]
[1643760985150,0.80685917,2800.0,2799.5,2.2964104]
[1643760985354,0.80685917,2800.0,2799.6,0.36465958]
[1643760985952,0.80685917,2800.0,2799.7,2.67833]
[1643760986153,0.80685917,2800.0,2799.7,2.08555]
[1643760986352,0.01247988,2800.3,2799.7,2.08555]
[1643760986553,1.50949994,2800.2,2799.7,1.78555]
[1643760987455,0.84634852,2799.8,2799.7,1.78555]
[1643760987890,0.19135988,2800.3,2799.7,1.78555]
[1643760987891,0.17888,2800.3,2799.7,2.08555]
[1643760988096,0.1784,2800.5,2799.9,0.89276]
[1643760988290,1.50939531,2800.4,2799.9,0.89276]
[1643760988492,1.50939531,2800.4,2799.9,1.19276]
[1643760988692,0.1784,2800.6,2800.1,1.7853]
[1643760988891,0.68054438,2800.4,2800.1,1.7853]
[1643760989294,0.68054438,2800.4,2800.1,2.0853]
[1643760989896,0.68054438,2800.4,2800.1,3.8706]
[1643760990297,0.68054438,2800.4,2800.2,1.78532]
[1643760990602,0.68054438,2800.4,2800.1,1.7853]
[1643760990798,3.42888,2800.2,2800.0,0.8034826]
[1643760990997,0.17888,2800.2,2800.0,0.8034826]
[1643760991198,1.0,2800.1,2800.0,0.8034826]
[1643760991396,0.85942438,2800.4,2800.0,0.8034826]
[1643760991638,0.85942438,2800.4,2800.0,1.6962826]
[1643760991639,0.68054438,2800.4,2800.0,1.6962826]
[1643760991841,0.68054438,2800.4,2800.0,1.9962826]
[1643760992039,0.68054438,2800.4,2800.0,1.6962826]
[1643760992238,0.68054438,2800.4,2800.0,1.9962826]
[1643760994746,0.68054438,2800.4,2800.0,1.6962826]
[1643760995248,0.85942438,2800.4,2800.0,1.6962826]
[1643760995489,0.85942438,2800.4,2800.0,0.8034826]
[1643760996685,0.85942438,2800.4,2799.9,1.60381691]
[1643760997086,0.85942438,2800.4,2799.7,0.8928]
[1643760997291,0.01267605,2800.3,2799.5,1.6071637]
[1643760997491,2.03345167,2800.3,2799.5,1.6071637]
[1643760997688,0.01267605,2800.3,2799.5,1.9071637]
[1643760997892,0.38397289,2800.0,2799.4,0.8927362]
[1643760998091,0.38397289,2800.0,2799.4,0.1784]
[1643760998092,0.79888507,2799.8,2799.4,0.1784]
[1643760998595,1.79888507,2799.8,2799.4,0.1784]
[1643760998789,0.79888507,2799.8,2799.4,0.1784]
[1643760998991,1.98414539,2799.7,2799.4,0.1784]
[1643760999288,3.76650015,2799.7,2799.4,0.1784]
[1643760999787,3.76650015,2799.7,2799.4,0.1284]
[1643760999987,3.76650015,2799.7,2799.4,0.12690459]
[1643761000189,3.77943014,2799.7,2799.4,0.12690459]
[1643761000591,0.37810918,2799.5,2799.4,0.12690459]
[1643761000791,1.0,2799.7,2799.4,0.12690459]
[1643761001199,0.97776507,2799.8,2799.4,0.12690459]
[1643761001200,1.97776507,2799.8,2799.4,0.12690459]
[1643761001390,0.97776507,2799.8,2799.4,0.12690459]
[1643761001790,0.97776507,2799.8,2799.3,0.7144451]
[1643761003995,0.79888507,2799.8,2799.3,0.7144451]
[1643761006750,1.1888,2800.3,2799.5,0.89278]
[1643761006945,0.1786,2800.4,2799.5,0.89278]
[1643761007141,7.12928,2800.7,2799.5,1.19278]
[1643761007142,1.84759934,2800.3,2799.5,1.19278]
[1643761007345,1.50935828,2800.2,2799.5,1.50877568]
[1643761007941,0.86579202,2800.1,2799.5,1.50877568]
[1643761008141,0.86579202,2800.1,2799.5,2.22299048]
[1643761008745,0.86579202,2800.1,2799.5,2.52299048]
[1643761009345,0.86579202,2800.1,2799.6,2.05090765]
[1643761009546,0.17888,2800.5,2799.6,2.05090765]
[1643761009746,1.50933583,2800.4,2800.0,0.89279]
[1643761010788,0.91208708,2800.2,2800.0,0.89279]
[1643761011187,0.17888,2800.5,2799.8,0.7142295]
[1643761011390,1.5093309,2800.4,2799.8,0.7142295]
[1643761012691,1.5093309,2800.4,2800.0,0.8928]
[1643761012889,2.33551825,2800.4,2800.0,0.8928]
[1643761013088,1.5093309,2800.3,2800.0,1.2823596]
[1643761013688,1.5093309,2800.3,2800.0,0.8928]
[1643761015150,1.5093309,2800.3,2799.8,0.7142295]
[1643761015354,1.5093309,2800.3,2799.7,3.2140289]
[1643761016348,1.5093309,2800.3,2799.7,3.56588694]
[1643761016956,1.5093309,2800.3,2799.7,1.4284589]
[1643761017153,0.17888,2800.2,2799.5,1.78571]
[1643761017353,0.17888,2800.2,2799.3,1.96426]
[1643761017354,0.17888,2800.2,2799.3,0.1784]
[1643761017355,1.5093309,2800.1,2799.3,0.1784]
[1643761017553,1.5093309,2800.1,2799.2,2.1427567]
[1643761017554,0.76490478,2799.6,2799.2,0.1784]
[1643761017755,1.5093309,2799.5,2799.2,0.1784]
[1643761018987,3.47145211,2799.5,2799.2,0.1784]
[1643761019202,3.47145211,2799.5,2798.7,0.1786]
[1643761019203,0.17888,2799.3,2798.7,0.1786]
[1643761019394,0.17888,2799.3,2798.5,0.1786]
[1643761019395,1.5093309,2799.2,2798.5,0.1786]
[1643761019600,1.5093309,2799.2,2798.4,0.17964549]
[1643761020195,0.80466281,2798.5,2798.4,0.1786]
[1643761020399,2.1724772,2799.1,2798.4,0.1786]
[1643761020594,2.1724772,2799.1,2798.3,1.78645]
[1643761020595,1.50983788,2799.0,2798.3,1.78645]
[1643761021194,1.50983788,2799.0,2798.3,2.501114]
[1643761021657,0.73369135,2798.7,2798.3,2.501114]
[1643761021857,0.73369135,2798.7,2798.4,0.89322]
[1643761022265,0.73369135,2798.7,2798.4,2.322312]
[1643761022558,0.17888,2799.1,2798.4,2.322312]
[1643761022760,1.50978869,2799.0,2798.4,2.322312]
[1643761023359,1.50978869,2799.0,2798.4,2.622312]
[1643761023558,1.1576,2799.2,2798.4,2.322312]
[1643761023761,1.50977852,2799.1,2798.4,2.322312]
[1643761023962,1.50977852,2799.0,2798.4,2.322312]
[1643761024158,1.50977852,2798.9,2798.4,2.322312]
[1643761024365,0.69388,2799.3,2798.6,0.7145117]
[1643761024566,1.50973111,2799.2,2798.8,0.37536573]
[1643761025164,2.23607416,2799.2,2798.8,0.37536573]
[1643761025386,1.50973111,2799.1,2798.8,0.37536573]
[1643761026186,1.50973111,2799.1,2798.8,1.08987343]
[1643761026587,1.50973111,2799.1,2798.8,1.98300343]
[1643761026789,0.1786,2799.4,2798.8,1.98300343]
[1643761026991,1.50962979,2799.3,2798.8,1.98300343]
[1643761027192,1.50962979,2799.2,2798.8,1.98300343]
[1643761027497,0.17888,2799.5,2798.8,1.98300343]
[1643761027690,2.24350738,2799.4,2798.8,1.98300343]
[1643761027895,1.50963033,2799.3,2798.8,1.98300343]
[1643761028090,0.1786,2799.6,2798.9,1.78603]
[1643761028396,10.4032,2800.1,2799.0,0.89288]
[1643761028397,1.50803514,2799.5,2799.0,0.89288]
[1643761028591,0.1786,2800.0,2799.0,0.89288]
[1643761028791,0.1786,2800.0,2799.0,0.3]
[1643761028992,0.81959063,2799.9,2799.0,0.3]
[1643761029244,0.81959063,2799.9,2799.2,1.78574]
[1643761029444,0.81959063,2799.9,2799.2,2.08574]
[1643761029644,2.00218514,2799.8,2798.9,0.1786]
[1643761029849,0.17888,2799.7,2798.8,0.2]
[1643761030052,0.1786,2799.6,2798.8,0.2]
[1643761030247,0.73849999,2799.1,2798.8,0.2]
[1643761030443,0.17888,2799.5,2798.8,0.2]
[1643761030650,5.60389069,2799.6,2798.8,1.09314]
[1643761030651,3.3025,2799.6,2798.8,1.09314]
[1643761030950,2.32598,2800.1,2798.8,1.09314]
[1643761030951,0.1786,2799.7,2798.9,4.8746015]
[1643761031246,0.1786,2799.7,2799.0,1.0]
[1643761031447,0.1786,2799.7,2799.1,0.1786]
[1643761031645,0.1786,2799.7,2799.1,1.96422]
[1643761031846,0.1786,2800.2,2799.1,2.08562]
[1643761032147,0.1786,2800.2,2799.4,0.89288]
[1643761032347,0.35728,2800.4,2799.5,0.7142556]
[1643761032748,0.17888,2800.4,2799.5,0.7142556]
[1643761033002,0.17888,2800.4,2800.1,0.43035496]
[1643761033204,0.17888,2800.4,2799.5,3.66813579]
[1643761033605,0.17888,2800.4,2799.5,1.6070356]
[1643761033803,0.17888,2800.4,2799.5,4.51960567]
[1643761034205,0.1784,2800.5,2799.9,0.7141766]
[1643761034405,0.84379791,2800.6,2799.9,0.7141766]
[1643761034808,0.1784,2800.6,2799.9,0.7141766]
[1643761035214,0.1784,2800.6,2800.3,0.44383658]
[1643761035409,0.1784,2800.6,2800.3,2.05064708]
[1643761036310,0.1784,2800.6,2800.3,1.6068105]
[1643761036512,0.1784,2800.6,2800.3,0.89267]
[1643761036755,0.1784,2800.6,2800.1,1.4282666]
[1643761036955,0.66539791,2800.6,2800.1,1.4282666]
[1643761037153,0.84427791,2800.6,2800.1,1.4282666]
[1643761037354,1.66469124,2800.6,2800.2,0.36293461]
[1643761037659,0.82041333,2800.6,2800.2,0.36293461]
[1643761037861,0.84379791,2800.7,2800.2,0.36293461]
[1643761038256,0.84379791,2800.7,2800.2,1.25564461]
[1643761038457,0.84379791,2800.7,2800.2,0.89271]
[1643761038857,1.59419662,2800.7,2800.2,0.89271]
[1643761039162,1.59419662,2800.7,2800.3,2.01682785]
[1643761039163,0.1784,2800.7,2800.3,2.01682785]
[1643761039357,0.84427791,2801.0,2800.4,1.78511]
[1643761039557,0.17888,2801.0,2800.5,0.41515662]
[1643761040159,0.1784,2801.1,2800.4,1.78511]
[1643761040618,0.1784,2801.1,2800.6,1.6065786]
[1643761040817,4.30577791,2801.2,2800.5,1.4280302]
[1643761041016,0.17888,2801.2,2800.5,1.4280302]
[1643761041214,0.84427791,2801.2,2800.5,1.4280302]
[1643761041414,0.88884091,2800.9,2800.5,1.4280302]
[1643761041617,0.88884091,2800.9,2800.2,0.51516945]
[1643761041618,0.88884091,2800.9,2800.2,1.94332235]
[1643761041815,0.88884091,2800.9,2800.0,0.1784]
[1643761042216,0.90160774,2800.9,2800.0,0.1784]
[1643761042617,0.90160774,2800.9,2800.1,1.78531]
[1643761042817,0.88884091,2800.9,2800.2,0.714142]
[1643761044255,0.88884091,2800.9,2800.6,0.42318434]
[1643761044451,0.88884091,2800.9,2800.3,0.89268]
[1643761045452,1.06772091,2800.9,2800.5,0.38150851]
[1643761045660,0.88884091,2800.9,2800.5,0.38150851]
[1643761045854,1.06772091,2800.9,2800.5,0.38150851]
[1643761046153,1.06772091,2800.9,2800.3,0.89268]
[1643761046351,0.88884091,2800.9,2800.3,0.89268]
[1643761046953,0.88884091,2800.9,2800.6,0.33638428]
[1643761047152,0.88884091,2800.9,2800.6,1.22897428]
[1643761047555,0.88884091,2800.9,2800.6,0.89259]
[1643761048201,1.50902356,2800.8,2800.6,0.89259]
[1643761048391,1.50902356,2800.7,2800.6,0.89259]
[1643761048793,1.50902356,2801.0,2800.6,0.89259]
[1643761048993,1.50902356,2800.9,2800.6,0.89259]
[1643761049294,1.50902356,2800.8,2800.6,0.89259]
[1643761050802,0.35728,2801.2,2800.6,0.89259]
[1643761050803,1.50902356,2800.7,2800.6,0.89259]
[1643761050999,1.50902356,2801.1,2800.6,0.89259]
[1643761051771,0.7982507,2801.0,2800.6,0.89259]
[1643761051969,1.50902356,2800.9,2800.6,0.89259]
[1643761052572,1.50902356,2800.8,2800.6,0.89259]
[1643761052774,1.50902356,2800.7,2800.6,0.89259]
[1643761052976,1.50902356,2801.1,2800.6,3.78722758]
[1643761053177,1.50902356,2801.0,2800.8,0.89242]
[1643761053379,0.17888,2801.4,2800.9,2.12791649]
[1643761053575,1.50884942,2801.3,2800.9,2.12791649]
[1643761053976,1.50884942,2801.2,2800.9,2.12791649]
[1643761054277,1.50884942,2801.1,2801.0,1.78474]
[1643761054474,1.50884942,2801.5,2801.0,4.02202813]
[1643761054875,1.50884942,2801.4,2801.0,4.02202813]
[1643761055074,1.50884942,2801.3,2801.0,4.20042813]
[1643761055281,0.1784,2802.2,2801.3,0.89217]
[1643761055507,1.1112076,2802.3,2801.6,1.14208]
[1643761055508,1.0612076,2802.3,2801.6,1.14208]
[1643761055702,1.50846932,2802.2,2801.6,1.14208]
[1643761056509,0.76337848,2801.9,2801.6,0.25]
[1643761056706,1.50846932,2801.8,2801.6,0.25]
[1643761057607,1.50846932,2802.1,2801.6,0.25]
[1643761057805,1.50848795,2802.0,2801.6,0.25]
[1643761058005,0.17888,2802.2,2801.6,0.25]
[1643761058205,1.50838782,2802.1,2801.6,0.25]
[1643761058411,2.31520749,2802.1,2801.6,0.25]
[1643761058609,1.50843359,2802.0,2801.6,0.25]
[1643761059250,0.17888,2802.2,2801.6,0.25]
[1643761059447,1.2396076,2802.3,2801.7,2.0369383]
[1643761059448,1.50839173,2802.1,2801.7,2.0369383]
[1643761059646,1.0612076,2802.3,2801.9,0.33856052]
[1643761060048,1.50831835,2802.2,2801.7,1.78416]
[1643761060650,1.50831835,2802.2,2801.7,1.73416]
[1643761060848,1.50831835,2802.2,2801.7,0.12518574]
[1643761061751,1.68719835,2802.2,2801.6,0.25]
[1643761062050,1.0612076,2802.3,2801.6,0.25]
[1643761062051,1.50831835,2802.1,2801.6,0.25]
[1643761062249,1.0612076,2802.3,2801.6,0.25]
[1643761062450,1.50840572,2802.2,2801.6,0.25]
[1643761062651,1.68728572,2802.2,2801.6,0.25]
[1643761062898,0.71974313,2801.7,2801.6,0.25]
[1643761063095,0.17888,2802.0,2801.6,0.25]
[1643761063292,1.1774,2802.2,2801.6,0.25]
[1643761063491,1.6873227,2802.1,2801.6,0.25]
[1643761063696,0.17888,2802.1,2801.6,0.25]
[1643761063893,1.1774,2802.2,2801.6,0.25]
[1643761064094,0.72749812,2802.1,2801.6,0.25]
[1643761065102,0.72749812,2802.1,2801.6,0.9637797]
[1643761066101,1.2396076,2802.3,2801.8,0.89218]
[1643761066310,1.0612076,2802.3,2801.9,2.32503892]
[1643761066501,1.0612076,2802.3,2801.9,3.03871132]
[1643761066751,1.0612076,2802.3,2801.7,1.78417]
[1643761066952,1.5084104,2802.2,2801.7,1.78417]
[1643761067152,1.83592988,2802.2,2801.7,1.78417]
[1643761067349,1.0612076,2802.3,2801.7,1.78417]
[1643761067551,1.50841848,2802.2,2801.7,1.78417]
[1643761067749,1.0612076,2802.3,2801.7,1.78417]
[1643761068156,1.0612076,2802.3,2801.7,2.497905]
[1643761068350,1.50841521,2802.2,2801.7,2.497905]
[1643761068554,0.89156722,2802.1,2801.7,2.497905]
[1643761073598,1.50842753,2802.0,2801.7,2.497905]
[1643761074447,1.50842753,2802.0,2801.6,0.25]
[1643761074448,3.47888,2801.8,2801.6,0.25]
[1643761074649,1.50842753,2801.7,2801.6,0.25]
[1643761075645,1.68730753,2801.7,2801.6,0.25]
[1643761076853,1.68730753,2801.7,2801.0,0.37828572]
[1643761076854,0.17888,2801.7,2801.0,0.37828572]
[1643761077049,0.17888,2801.7,2801.0,2.86018891]
[1643761077247,0.67647153,2801.6,2801.0,0.80668572]
[1643761077447,0.17888,2801.7,2801.0,0.80668572]
[1643761077648,0.1784,2802.0,2801.0,1.40668572]
[1643761077903,1.50853065,2801.9,2801.0,3.46409636]
[1643761078104,1.50853065,2801.9,2801.3,0.7138567]
[1643761078304,3.3905,2802.1,2801.3,0.7138567]
[1643761078305,1.50853065,2801.8,2801.3,0.7138567]
[1643761078506,0.17888,2802.0,2801.2,0.89235]
[1643761078712,1.50853439,2801.9,2801.2,0.89235]
[1643761079617,0.8563132,2801.4,2801.2,0.89235]
[1643761080211,0.17888,2801.8,2801.2,0.89235]
[1643761080410,1.50858275,2801.7,2801.2,0.89235]
[1643761081218,0.77828505,2801.4,2801.2,0.89235]
[1643761081852,0.77828505,2801.4,2801.1,1.4276587]
[1643761082052,0.17888,2801.8,2801.1,1.4276587]
[1643761082257,1.50854457,2801.7,2801.1,3.2122787]
[1643761082452,1.50854457,2801.7,2801.1,3.3906787]
[1643761083257,0.67433103,2801.5,2801.3,0.89232]
[1643761084361,0.17888,2801.8,2801.3,0.89232]
[1643761084559,1.50850889,2801.7,2801.3,1.6061452]
[1643761085159,0.17888,2801.8,2801.3,1.6061452]
[1643761086497,0.1784,2802.1,2801.4,2.00718521]
[1643761086706,1.50841997,2802.0,2801.4,4.14859801]
[1643761086904,1.0612076,2802.3,2801.6,0.25]
[1643761087102,1.0612076,2802.3,2801.7,2.18204936]
[1643761087312,0.42537713,2802.3,2801.7,2.48204936]
[1643761087504,0.35728,2803.1,2801.9,3.3]
[1643761087711,4.5059325,2803.3,2802.8,0.32736765]
[1643761087908,0.66539791,2803.4,2802.8,0.32736765]
[1643761087909,1.50796161,2803.0,2802.9,2.00364936]
[1643761088108,0.01,2803.5,2803.1,0.01206218]
[1643761088305,0.66823041,2803.9,2803.0,0.25]
[1643761088306,0.0028325,2803.9,2803.2,0.1782]
[1643761088505,1.50762376,2804.0,2803.2,0.1782]
[1643761088708,0.01,2803.9,2803.8,0.89144]
[1643761088909,0.01,2803.9,2803.7,0.36056187]
[1643761088910,1.50762376,2803.9,2803.7,0.36056187]
[1643761089149,1.50762376,2803.8,2803.7,0.36056187]
[1643761089554,0.01,2803.9,2803.7,0.36056187]
[1643761089863,0.1782,2804.7,2803.9,1.78236]
[1643761090065,0.1782,2805.2,2804.1,1.4258923]
[1643761090256,1.50694076,2805.1,2804.3,0.25]
[1643761090455,1.50694076,2805.0,2804.4,0.1782]
[1643761090653,0.01463174,2805.4,2804.4,0.1782]
[1643761090654,1.50694076,2805.3,2804.4,0.1782]
[1643761090855,1.50694076,2805.2,2804.4,0.1782]
[1643761091056,1.50694076,2805.1,2804.4,0.1782]
[1643761091256,2.25760189,2805.0,2804.5,0.7129487]
[1643761091456,1.50694076,2804.9,2804.5,0.7129487]
[1643761091857,0.1782,2805.3,2804.5,0.7129487]
[1643761092057,1.50698683,2805.2,2804.6,2.00364936]
[1643761092259,1.50698683,2805.2,2804.6,2.08215]
[1643761092466,1.50698683,2805.2,2804.6,1.78215]
[1643761092657,0.79328983,2805.1,2804.6,1.78215]
[1643761092916,1.50703918,2805.0,2804.6,1.78215]
[1643761093122,1.50703918,2805.0,2804.3,0.25]
[1643761093314,0.1782,2804.9,2804.3,0.25]
[1643761093517,1.68591918,2804.8,2804.3,0.25]
[1643761093717,1.68523918,2804.7,2804.3,0.25]
[1643761093913,0.1782,2804.7,2804.3,0.25]
[1643761094114,2.40092378,2804.6,2804.3,0.25]
[1643761094316,0.89360589,2804.6,2804.3,0.25]
[1643761094717,1.50731866,2804.5,2804.3,0.25]
[1643761095123,0.89360589,2804.6,2804.3,0.25]
[1643761095816,0.17888,2804.4,2804.3,0.25]
[1643761098958,0.71472589,2804.6,2804.3,0.25]
[1643761099259,1.01472589,2804.6,2804.3,0.25]
[1643761099666,1.01472589,2804.6,2803.7,1.06962]
[1643761099667,3.3,2803.9,2803.7,0.1782]
[1643761099863,1.19151564,2804.4,2803.7,0.1782]
[1643761099864,4.815,2803.8,2803.7,0.1782]
[1643761100074,4.815,2803.8,2802.5,2.0]
[1643761100075,3.4782,2803.7,2802.5,2.0]
[1643761100273,1.69388,2803.6,2802.0,4.27665339]
[1643761100497,0.1897691,2803.5,2801.9,2.0]
[1643761100702,0.87755447,2802.4,2801.9,2.0]
[1643761100911,0.87755447,2802.4,2801.4,5.21113011]
[1643761100912,0.87755447,2802.4,2801.7,0.39188332]
[1643761101109,0.87755447,2802.4,2800.8,3.04408431]
[1643761101110,0.3,2802.3,2800.8,3.04408431]
[1643761101305,0.17888,2802.2,2800.8,0.25]
[1643761101506,0.515,2802.2,2800.8,0.25]
[1643761101701,0.515,2802.2,2801.1,2.4979298]
[1643761102101,0.85029964,2801.8,2801.3,0.4100889]
[1643761102704,0.85029964,2801.8,2801.3,1.8373438]
[1643761103304,0.69388,2802.5,2801.4,0.89209]
[1643761103701,0.69388,2802.5,2801.4,1.19209]
[1643761103903,0.69388,2802.5,2801.6,0.7135974]
[1643761104351,0.9547766,2802.4,2801.6,0.7135974]
[1643761104752,0.17888,2802.5,2801.6,0.7135974]
[1643761104963,0.1784,2802.7,2801.9,0.89194]
[1643761105254,1.0,2803.1,2801.9,0.89194]
[1643761105255,0.35728,2803.0,2801.9,0.89194]
[1643761105462,0.35728,2803.0,2801.2,0.01221477]
[1643761105463,0.17888,2802.8,2801.2,0.01221477]
[1643761105651,0.17888,2802.8,2801.0,1.78418]
[1643761105652,0.6934,2802.7,2801.0,1.78418]
[1643761105852,0.37607,2802.6,2801.0,1.78418]
[1643761106053,0.87228,2802.5,2801.0,1.78418]
[1643761106251,0.94374563,2801.6,2801.0,2.4979415]
[1643761106555,0.94374563,2801.6,2800.7,0.8923]
[1643761106953,0.94374563,2801.6,2801.0,0.42437545]
[1643761107454,0.94374563,2801.6,2800.7,0.8923]
[1643761107657,1.12262563,2801.6,2800.7,0.8923]
[1643761107912,0.94374563,2801.6,2800.7,0.8923]
[1643761108502,0.94374563,2801.6,2800.9,0.42881209]
[1643761109308,0.17888,2801.7,2800.9,0.42881209]
[1643761109611,0.1784,2802.1,2801.0,0.89218]
[1643761109808,0.1784,2802.1,2801.0,1.19218]
[1643761110310,0.1784,2802.1,2801.0,0.3]
[1643761110311,2.24868434,2802.1,2801.0,0.3]
[1643761110510,2.24868434,2802.1,2800.9,1.14257789]
[1643761110511,0.68694987,2801.6,2800.9,1.14257789]
[1643761110716,0.68694987,2801.6,2800.9,0.42881209]
[1643761111753,0.68694987,2801.6,2800.9,0.72881209]
[1643761112152,0.68694987,2801.6,2800.9,1.02881209]
[1643761112352,0.6934,2801.9,2800.9,1.92104209]
[1643761112353,0.1784,2801.9,2800.9,1.92104209]
[1643761112552,1.17888,2802.1,2800.9,1.92104209]
[1643761112553,0.1784,2802.0,2800.9,1.92104209]
[1643761113259,0.88940586,2801.7,2800.9,1.92104209]
[1643761113455,0.88940586,2801.7,2801.0,0.1784]
[1643761114459,0.1784,2802.0,2801.5,0.43709122]
[1643761114662,0.17888,2802.1,2801.5,0.43709122]
[1643761114663,0.35728,2802.1,2801.5,0.43709122]
[1643761115060,0.1784,2802.1,2801.5,0.43709122]
[1643761115503,0.1784,2802.3,2801.5,0.43709122]
[1643761115903,0.72775862,2801.6,2801.2,0.89214]
[1643761116101,0.90663862,2801.6,2800.7,0.25]
[1643761116300,0.90663862,2801.6,2800.4,0.00104549]
[1643761116301,2.15836012,2801.5,2800.4,0.00104549]
[1643761116503,0.17888,2801.4,2800.4,0.00104549]
[1643761116700,0.515,2801.5,2800.4,0.00104549]
[1643761117301,0.515,2801.5,2800.9,0.32733997]
[1643761117501,0.515,2801.5,2800.4,0.71494589]
[1643761118103,0.17888,2801.4,2800.4,0.00104549]
[1643761118308,0.515,2801.3,2800.0,1.1378]
[1643761118513,0.31658352,2800.9,2800.0,0.35994383]
[1643761118716,0.1784,2801.1,2800.0,0.35994383]
[1643761118910,1.1784,2801.1,2800.0,0.35994383]
[1643761119585,0.86505902,2800.6,2800.0,0.35994383]
[1643761120080,0.6010351,2800.9,2799.4,0.01260362]
[1643761120081,0.69250698,2800.1,2799.4,0.90534362]
[1643761120480,0.69250698,2800.1,2799.4,0.89274]
[1643761120684,0.515,2800.6,2799.4,0.89274]
[1643761121192,0.515,2800.6,2800.1,0.89253]
[1643761121486,6.443,2801.7,2800.1,0.89253]
[1643761121487,0.1784,2801.0,2800.1,0.89253]
[1643761121682,0.84256636,2801.4,2800.2,0.01271208]
[1643761121882,0.1784,2801.3,2800.2,0.01271208]
[1643761122680,0.1784,2801.3,2800.3,0.7139021]
[1643761122906,0.1784,2801.3,2800.3,2.7986421]
[1643761123101,0.1784,2801.3,2800.3,2.38474]
[1643761124305,0.1784,2801.3,2800.6,0.89236]
[1643761124509,0.31603448,2801.9,2800.6,0.89236]
[1643761124510,0.1784,2801.8,2800.6,0.89236]
[1643761124704,0.1784,2801.8,2800.6,1.49236]
[1643761124906,0.17714959,2801.8,2800.6,1.49236]
[1643761125505,0.17714959,2801.8,2801.2,0.41332835]
[1643761125706,0.73157343,2801.7,2800.6,1.49236]
[1643761125907,0.1784,2801.6,2800.6,1.49236]
[1643761126314,0.1784,2801.6,2800.6,0.3]
[1643761126509,0.7578488,2801.2,2800.6,0.3]
[1643761126766,0.7578488,2801.2,2800.8,0.36770354]
[1643761127566,0.1784,2801.4,2800.8,0.36770354]
[1643761128169,0.1784,2801.7,2800.8,0.36770354]
[1643761128568,0.75454795,2801.6,2800.8,0.36770354]
[1643761128767,0.1784,2801.5,2800.3,2.38474]
[1643761128973,0.1784,2801.5,2800.3,3.38474]
[1643761129372,0.1784,2801.5,2800.3,0.6]
[1643761129572,2.25631948,2801.5,2800.3,0.6]
[1643761129772,2.25631948,2801.5,2800.2,0.01271208]
[1643761129773,2.25631948,2801.5,2800.2,0.31271208]
[1643761129973,2.25631948,2801.5,2800.5,0.44587228]
[1643761130276,0.42113714,2801.3,2800.5,0.44587228]
[1643761130505,2.25631948,2801.5,2800.5,0.44587228]
[1643761130701,1.0,2801.4,2800.5,0.44587228]
[1643761130901,3.25631948,2801.5,2800.5,0.44587228]
[1643761131108,0.1784,2801.5,2800.5,0.44587228]
[1643761131307,0.1784,2801.5,2801.0,0.43025537]
[1643761131512,0.1784,2801.5,2800.2,0.01271208]
[1643761132507,0.8538827,2801.1,2800.2,0.01271208]
[1643761132705,0.8538827,2801.1,2800.8,0.37690267]
[1643761133106,0.1784,2801.5,2800.8,0.37690267]
[1643761133308,0.1784,2801.5,2800.1,1.49252]
[1643761134356,0.1784,2801.5,2800.7,0.4184004]
[1643761134357,0.77203205,2801.2,2800.7,0.4184004]
[1643761134556,0.1784,2801.5,2800.7,0.4184004]
[1643761135359,0.1784,2801.6,2800.7,0.4184004]
[1643761135658,0.35728,2801.6,2800.7,0.4184004]
[1643761135859,0.76118532,2801.3,2800.7,0.4184004]
[1643761136458,1.35728,2801.6,2800.7,0.4184004]
[1643761136664,0.35728,2801.6,2800.7,0.4184004]
[1643761137159,0.1784,2801.6,2800.7,0.4184004]
[1643761137358,1.00213423,2801.6,2800.7,0.4184004]
[1643761137559,1.00213423,2801.6,2800.7,0.7184004]
[1643761139705,2.99324018,2801.6,2800.7,0.7184004]
[1643761140306,1.36727237,2801.5,2800.7,0.4184004]
[1643761140610,1.36727237,2801.5,2800.0,0.25]
[1643761140611,0.92926876,2800.9,2800.0,0.25]
[1643761140809,0.92926876,2800.9,2799.6,5.62844606]
[1643761140810,2.31159852,2800.8,2799.6,5.4379764]
[1643761141007,2.31159852,2800.8,2799.4,2.71987299]
[1643761141008,2.31159852,2800.8,2799.4,2.52940333]
[1643761141206,2.31159852,2800.8,2799.4,1.35110333]
[1643761141207,6.55589852,2800.8,2799.4,1.35110333]
[1643761141651,6.99074066,2800.8,2799.9,0.43010698]
[1643761141865,0.78330137,2800.4,2799.9,0.43010698]
[1643761142655,2.4128327,2800.3,2799.2,1.2367]
[1643761142855,0.515,2800.2,2799.2,1.35110333]
[1643761143252,1.515,2800.2,2799.2,1.35110333]